Cogmind - Beta 9.1 @@@ ROGUE MODE // 2019.11.09 @ 14:53:10 Player: Fleshy Vegetable Bird Result: Destroyed by D-53 Grenadier with Mini Grenade Launcher Performance ------------- Evolutions (0) 0 Regions Visited (2) 400 Robots Destroyed (24) 120 Value Destroyed (314) 314 Prototype IDs (4) 80 Alien Tech Used (0) 0 Bonus (35) 35 TOTAL SCORE: 949 Bonus ------- Follower Combat Kills 35 Cogmind --------- Core Integrity 0/250 Matter 270/300 Energy 78/100 System Corruption 0% Temperature Cool (0) Location -10/Mines Parts ------- Power (1) Propulsion (2) Utility (2) Large Storage Unit Weapon (2) Inventory (10) Light Nuclear Core Medium Storage Unit Large Storage Unit Hacking Suite EM Pulse Gun Light Assault Rifle Light Assault Rifle Rocket Launcher Peak State ------------ Power Ion Engine Propulsion Wheel Wheel Utility Large Storage Unit Light Armor Plating Weapon Assault Rifle Rocket Launcher Inventory Medium Storage Unit Large Storage Unit Hacking Suite EM Pulse Gun EM Pulse Gun Assault Rifle Light Assault Rifle Light Assault Rifle [Rating: 9] Favorites ----------- Power Light Ion Engine Engine Light Ion Engine Propulsion Wheel Wheel Wheel Utility Light Armor Plating Storage Large Storage Unit Protection Light Armor Plating Weapon EM Pulse Gun Energy Gun EM Pulse Gun Ballistic Gun Assault Rifle Launcher Rocket Launcher Special Weapon Mining Laser Build | -11 -10 -10 ------- Run | Scr Mat Min Slots Evolved . | . . . Power . | . . . Propulsion . | . . . Utility . | . . . Weapon . | . . . Parts Attached 25 | 7 9 9 Power 3 | 1 1 1 Engine 3 | 1 1 1 Core . | . . . Reactor . | . . . Propulsion 7 | 3 2 2 Treads . | . . . Leg . | . . . Wheel 7 | 3 2 2 Hover . | . . . Flight . | . . . Utility 5 | 1 3 1 Device . | . . . Storage 2 | 1 1 . Processor . | . . . Hackware . | . . . Protection 3 | . 2 1 Artifact . | . . . Weapon 10 | 2 3 5 Energy Gun 4 | 2 1 1 Energy Cannon . | . . . Ballistic Gun 3 | . . 3 Ballistic Cannon . | . . . Launcher 1 | . . 1 Special Weapon 2 | . 2 . Impact Weapon . | . . . Slashing Weapon . | . . . Piercing Weapon . | . . . Special Melee Weapon . | . . . Unidentified Prototypes . | . . . Parts Lost 12 | . . 12 Power 2 | . . 2 Propulsion 4 | . . 4 Utility 1 | . . 1 Weapon 5 | . . 5 Highest Loss Streak 7 | . . 7 Average Slot Usage (%) 97 | . 99 94 Engine 13 | . 14 13 Wheel 26 | . 28 25 Storage 14 | . 14 14 Protection 13 | . 13 12 Energy Gun 16 | . 26 . Ballistic Gun 8 | . . 21 Launcher 1 | . . 4 Naked Turns . | . . . Heaviest Build 30 | 11 26 30 Greatest Support 26 | 26 20 20 Greatest Overweight (x) 2 | . 1 2 Average Overweight (x) . | . . 1 Largest Inventory Capacity 10 | 6 10 10 Average Capacity 8 | 5 7 10 Most Carried 10 | 6 10 10 Average Carried 7 | 2 7 7 Final Capacity 10 | 6 10 10 Final Carried 10 | 5 10 8 Class Distribution -------------------- 100% | Mutant Dominant Class ---------------- Mutant | -10/Materials Mutant | -10/Mines Resources | -11 -10 -10 ----------- Run | Scr Mat Min Matter Collected 533 | 250 96 187 Remotely . | . . . Salvage Created 561 | 144 286 131 Parts 51 | 10 26 15 Haulers Intercepted 2 | . 2 . Recyclers Shooed . | . . . Parts Field Recycled . | . . . Retrieved Matter . | . . . Parts Self-Destructed . | . . . Prevented . | . . . Kills | -11 -10 -10 ------- Run | Scr Mat Min Combat Hostiles Destroyed 15 | . 6 9 Guns 10 | . 6 4 AOE 5 | . . 5 Classes Destroyed 7 | 2 4 1 Tunneler 3 | 3 . . Hauler 2 | . 2 . Recycler 1 | 1 . . Operator 1 | . 1 . Watcher 2 | . 2 . Swarmer 12 | . 6 6 Grunt 3 | . . 3 Best Kill Streak 5 | 4 3 5 Combat Bots Only 5 | . 3 5 Max Kills in Single Turn 3 | 1 1 3 Gunslinging . | . . . Exploded 3 | . . 3 Melee . | . . . Uniques/NPCs Destroyed . | . . . Combat | -11 -10 -10 -------- Run | Scr Mat Min Damage Taken 1210 | 22 294 894 Core 269 | 11 33 225 Absorbed by Shields . | . . . Core Remaining (%) 95 | 95 . . Volleys Fired 63 | 5 30 28 Largest 2 | 2 2 2 Hottest 140 | 80 100 140 Shots Fired 116 | 10 55 51 Gun 103 | 10 50 43 Cannon . | . . . Launcher 4 | . . 4 Special 9 | . 5 4 Kinetic 41 | . . 41 Thermal 9 | . 5 4 Explosive 4 | . . 4 Electromagnetic 62 | 10 50 2 Robot Hit Streak 9 | 3 4 9 Robot Miss Streak 6 | 1 3 6 Penetration Max . | . . . Secondary Targets 2 | . 1 1 Max Gunslinging Chain 1 | . 1 1 Shots Hit Robots 58 | 6 26 26 Core Hits 31 | 4 13 14 Critical Hits . | . . . Critical Kills . | . . . Critical Parts Destroyed . | . . . Melee Attacks . | . . . Impact . | . . . Slashing . | . . . Piercing . | . . . Sneak Attacks . | . . . Combat Hostiles . | . . . Follow-up Attacks . | . . . Damage Inflicted 1079 | 107 353 619 Guns 694 | 77 326 291 Cannons . | . . . Explosions 361 | 30 27 304 Melee . | . . . Ramming . | . . . Kinetic 270 | . . 270 Thermal 81 | 30 27 24 Explosive 304 | . . 304 Electromagnetic 424 | 77 326 21 Impact . | . . . Slashing . | . . . Piercing . | . . . Highest Corruption . | . . . Average Corruption . | . . . Corruption Purged . | . . . Overload Shots . | . . . Overflow Damage 4 | . . 4 Projectiles 4 | . . 4 Explosions . | . . . Melee . | . . . Knockbacks . | . . . Impact . | . . . Kinetic . | . . . Secondary . | . . . Self-Inflicted Damage 23 | 23 . . Shots 1 | 1 . . Rammed . | . . . Targets Rammed . | . . . Kicked . | . . . Crushed . | . . . Highest Temperature 219 | 36 219 151 Average Temperature 53 | 17 54 64 Received Heat Transfer 75 | . 36 39 Siege Activations . | . . . Robots Corrupted . | . . . Combat Hostiles . | . . . Parts Fried 1 | . 1 . Impact Corruptions . | . . . Robots Melted . | . . . Combat Hostiles . | . . . Parts Melted . | . . . Heat Transferred 50 | . . 50 Parts Sabotaged . | . . . Parts Stolen . | . . . Parts Stripped . | . . . Power Chain Reactions 2 | 1 1 . Missiles Intercepted . | . . . Alert | -11 -10 -10 ------- Run | Scr Mat Min Peak Influence 296 | 20 270 296 Average Influence 105 | 8 109 115 Maximum Alert Level 1 | . 1 1 Low Security (%) 87 | . . . Level 1 12 | . . . Level 2 . | . . . Level 3 . | . . . Level 4 . | . . . Level 5 . | . . . High Security . | . . . Max Security . | . . . Squads Dispatched 2 | . 2 . Investigation 2 | . 2 . Extermination . | . . . Reinforcement . | . . . Assault . | . . . Garrison . | . . . Intercept . | . . . Construction Impeded . | . . . Haulers Reinforced . | . . . Stealth | -11 -10 -10 --------- Run | Scr Mat Min Distress Signals . | . . . Communications Jammed . | . . . Distress Signals . | . . . Times Spotted 29 | . 20 9 Peak Tracking Total 4 | . 3 4 Tactical Retreats 2 | . 2 . Traps | -11 -10 -10 ------- Run | Scr Mat Min Traps Triggered . | . . . Indirectly . | . . . Trap Hack Attempts . | . . . Triggered . | . . . Disarmed . | . . . Reprogrammed . | . . . Reused . | . . . Traps Extracted . | . . . Installed . | . . . Triggered . | . . . Machines | -11 -10 -10 ---------- Run | Scr Mat Min Machines Disabled . | . . . Max in Single Turn . | . . . Machines Sabotaged . | . . . Garrisons Compromised . | . . . Overloaded Fab Kills . | . . . Fab Network Shutdowns . | . . . Hacking | -11 -10 -10 --------- Run | Scr Mat Min Machines Accessed 10 | . 10 . Terminals 8 | . 8 . Fabricators . | . . . Repair Stations . | . . . Recycling Units 2 | . 2 . Scanalyzers . | . . . Garrison Access . | . . . Total Hacks 28 | . 28 . Successful 22 | . 22 . Failed 6 | . 6 . Catastrophic 1 | . 1 . Database Lockouts . | . . . Manual 23 | . 23 . Terminals 26 | . 26 . Fabricators . | . . . Repair Stations . | . . . Recycling Units 2 | . 2 . Scanalyzers . | . . . Garrison Access . | . . . Terminal Hacks 10 | . 10 . Part Schematic 2 | . 2 . Robot Analysis 1 | . 1 . Prototype ID Bank 2 | . 2 . Branch Access Points 1 | . 1 . Terminal Index 1 | . 1 . Registered Components 1 | . 1 . Registered Prototypes 1 | . 1 . Zone Layout 1 | . 1 . Fabricator Hacks . | . . . Repair Station Hacks . | . . . Recycling Unit Hacks . | . . . Scanalyzer . | . . . Garrison Access Hacks . | . . . Unauthorized Hacks 28 | . 28 . Terminals 10 | . 10 . Track 2 | . 2 . Assimilate 2 | . 2 . Botnet 4 | . 4 . Disrupt 1 | . 1 . Operators 1 | . 1 . Fabricators . | . . . Repair Stations . | . . . Recycling Units 2 | . 2 . Tunnel 2 | . 2 . Scanalyzers . | . . . Garrison Access . | . . . Data Cores Recovered 1 | . 1 . Used . | . . . Hacking Detections 7 | . 7 . Full Trace Events . | . . . Feedback Events . | . . . Feedback Blocked . | . . . Robot Schematics Acquired . | . . . Robots Built . | . . . Matter . | . . . Time . | . . . Total Robot Build Rating . | . . . Part Schematics Acquired 2 | . 2 . Parts Built . | . . . Matter . | . . . Time . | . . . Total Part Build Rating . | . . . Parts Repaired . | . . . Time . | . . . Parts Recycled . | . . . Recycled Matter . | . . . Retrieved Matter . | . . . Retrieved Components . | . . . Parts Scanalyzed . | . . . Part Schematics Acquired . | . . . Parts Damaged . | . . . Bothacking | -11 -10 -10 ------------ Run | Scr Mat Min Used RIF Installer . | . . . Robots Hacked . | . . . Non-combat . | . . . Combat . | . . . Robot Hacks Applied . | . . . Relay Couplers Released . | . . . Robots Rewired . | . . . Allies Hacked . | . . . Hacks Repelled . | . . . Allies | -11 -10 -10 -------- Run | Scr Mat Min Total Allies 3 | . . 3 Largest Group 3 | . . 3 Highest-Rated Group 40 | . . 40 Highest-Rated Ally 16 | . . 16 Total Orders . | . . . Ally Attacks 8 | . . 8 Total Damage 93 | . . 93 Kills 1 | . . 1 Allies Corrupted . | . . . Allies Melted . | . . . Intel | -11 -10 -10 ------- Run | Scr Mat Min Robot Analysis Total 1 | . 1 . Derelict Logs Recovered 1 | . . 1 Drone Launches . | . . . Drone Recoveries . | . . . Exploration | -11 -10 -10 ------------- Run | Scr Mat Min Turns Passed 1340 | 81 767 492 Spaces Moved 1141 | 55 677 409 Core 6 | 6 . . Treads . | . . . Legs . | . . . Wheels 1135 | 49 677 409 Hover . | . . . Flight . | . . . Fastest Speed 50 | 50 80 90 Average Speed 86 | 81 84 90 Slowest Speed 100 | 90 90 100 Overloaded Moves . | . . . Propulsion Burnouts . | . . . Robots Hopped . | . . . Cave-ins Triggered . | . . . Exploration Rate (%) 57 | 4 89 78 Regions Visited 2 Branch Regions 1 Pre-discovered Areas 2 | . 2 . Known Exits Taken 1 | . 1 . Unknown Exits Taken 1 | 1 . . Scrap Searched 1 | . . 1 Spaces Dug 5 | . 5 . Terrain Destroyed 51 | . 5 46 Melee . | . . . Projectile 8 | . 5 3 AOE 43 | . . 43 Actions | -11 -10 -10 --------- Run | Scr Mat Min Total 1358 | 81 805 472 Wait 88 | . 68 20 Move 1139 | 54 676 409 Hop . | . . . Pick Up 32 | 13 14 5 Fast Attach . | . . . Attach 13 | 6 1 6 Detach . | . . . Swap 12 | 1 8 3 Drop 11 | 2 8 1 Fire 63 | 5 30 28 Melee . | . . . Ram . | . . . Kick . | . . . Crush . | . . . Escape Stasis . | . . . Rewire . | . . . Trap . | . . . Miscellaneous . | . . . Route ------- -11/Scrapyard -10/Materials (discovered 3 exits: [*Mat x2] / *Min) -10/Mines (discovered 1 exit: [*Mat]) History --------- Turn | Location | Event 31 | -11/Scrapyard | Discovered new exit (range 16) 82 | -11/Scrapyard | Entered Materials 228 | -10/Materials | Discovered new exit (range 9) 301 | -10/Materials | Discovered new exit (range 8) 315 | -10/Materials | Build established: Mutant 428 | -10/Materials | Identified exit to Mines 491 | -10/Materials | Discovered new exit (range 16) 849 | -10/Materials | Entered Mines 902 | -10/Mines | Lost 5 parts (1p2n2w) 927 | -10/Mines | Received a Rocket Launcher from a helpful Derelict 968 | -10/Mines | Learned Materials interactive machine intel 1041 | -10/Mines | Assisted by bots powering up and referring to "LRC-V3" 1143 | -10/Mines | Discovered new exit (range 15) 1278 | -10/Mines | Assembled infested the area 1300 | -10/Mines | Core integrity fell below 50% 1314 | -10/Mines | Core integrity fell below 20% 1341 | -10/Mines | Destroyed by D-53 Grenadier with Mini Grenade Launcher Last Messages --------------- 01240_ U-05 Engineer builds a Wall. 01240_ U-05 Engineer lays Concrete. 01246_ U-05 Engineer builds a Wall. 01278_ ALERT: Infestation in the mines, dispatching Demolisher response squad. 01291_ C-30 ARC bursts open, deploying its payload. 01291_ D-53 Grenadier unfolds itself. 01306_ The unstable cave ceiling collapses. 01309_ Lgt. Armor Plating destroyed. 01309_ Wheel destroyed. 01310_ The unstable cave ceiling collapses. 01313_ Destroyed Shock Absorption System. 01313_ D-53 Grenadier destroyed. 01314_ The unstable cave ceiling collapses. 01333_ Ion Engine destroyed. 01333_ Assault Rifle destroyed. 01337_ Wheel destroyed. 01338_ The unstable cave ceiling collapses. 01341_ EM Pulse Gun destroyed. 01341_ Assault Rifle destroyed. Map ----- +----------------------------------------------------+ | | | | | | | | | | | | | | | | | | | | | | | | | | | | | | | | | ???????????????????????????????????? | | ????????????????????????###????????? | | ??????????????????????## #####????? | | ??????????????????????# ##???? | | ??????????????????????# ##??? | | ?????????????????###### #??? | | ????????????????## ## < #??? | | ??????????####### ###??? | | ?????????## # #????? | | ????????## #d @ #?????? | | ????????# # # #????? | | ?????#### ### #????? | | ??# # # #?# ##????? | | ?# #?# ##?????? | | ## #?##### ##??????? | | """ # ##?????# #???????? | | ?"" ### ## ###?????# #???????? | | ?""????# #### #?????# #???????? | | ???????# #?## ## ###???? #???????? | | ???????# ### ##??? #???????? | | ???????#"% #??? #???????? | | ???????##### #???###???????? | | ???????????# #??###????????? | | ???????????? =%% ##? ##???????? | | ???????????# [ #? #???????? | | ???????????# ### #???????? | | ????????????# # ##??# #????????? | | ?????????????## #??# ##???????? | | ??????????????# #?# #???????? | | ???????????#### ## #???????? | | ????###???## # #????????? | | ???? #???# #?????????? | | ????# #???# #??????????? | | ????# #???## #### ##??????????? | +----------------------------------------------------+ Best States ------------- Heat Dissipation 25 Energy Generation 10 Energy Capacity 250 Matter Stores 300 Matter Capacity 300 Sight Range 16 Terrain Scan Density 10 Armor Coverage 150 Evasion (%) 44 Item Schematics ----------------- Hcp. Storage Unit | -10/Materials | Hacked Med. Storage Unit | -10/Materials | Hacked Robot Schematics ------------------ None Fabricated ------------ Nothing Alien Tech Used ----------------- None Achievements -------------- None Challenges ------------ None Game ------ Seed BattleCoordinationSpear Manual? 0 Play Time 00:12:28 Cumulative 161.0 hours Start 2019.11.09 @ 14:38:49 End 2019.11.09 @ 14:53:10 Sessions 1 Manual Loads 0 Difficulty Rogue Special Mode None Game No. 229 Rogue 229 Adventurer 0 Explorer 0 Win Type - Total 1 Types 1/0/0/0/0/0/0 Lore% 41 Gallery% 66 Achievement% 41 Wizard Run 0 Options --------- ASCII 0 Keyboard 0 Movement Numpad Keybinds 0 Fullscreen 1 Font 16/Terminus Map View 75x55 Tactical HUD 1 Map Filters NONE Filters NONE Steam 1 RUN: 20a04bd3-4470-4cd9-a52d-6c9448fbf70a